bitfinex/quotes_ETHUSD_20251201
["timestamp","ask_amount","ask_price","bid_price","bid_amount"]
[1764567279700,0.002,2825.1,2825.0,18.07607813]
[1764567280302,0.002,2825.1,2825.0,17.59187813]
[1764567281375,0.002,2825.1,2825.0,7.389823]
[1764567281376,0.9462,2825.1,2825.0,7.389823]
[1764567282789,0.9462,2825.1,2825.0,13.97941004]
[1764567283188,0.4706,2825.1,2825.0,13.97941004]
[1764567284585,1.29984028,2825.1,2825.0,7.389823]
[1764567284784,0.9462,2825.1,2825.0,7.389823]
[1764567285306,0.4706,2825.1,2825.0,7.389823]
[1764567285486,0.9462,2825.1,2825.0,7.389823]
[1764567286694,0.9462,2825.1,2825.0,13.97941004]
[1764567287006,0.4706,2825.1,2825.0,13.97941004]
[1764567287714,0.9462,2825.1,2825.0,13.97941004]
[1764567288211,0.4706,2825.1,2825.0,13.97941004]
[1764567288414,0.002,2825.1,2825.0,16.24564533]
[1764567289318,0.002,2825.1,2825.0,14.46361004]
[1764567292401,0.002,2825.1,2825.0,22.26599119]
[1764567293320,0.002,2825.1,2825.0,15.67640415]
[1764567294318,0.002,2825.1,2825.0,16.94066493]
[1764567294512,0.002,2825.1,2825.0,15.67640415]
[1764567294823,0.002,2825.1,2825.0,17.9667312]
[1764567295224,0.002,2825.1,2825.0,19.23099198]
[1764567295394,0.002,2825.1,2825.0,18.74379198]
[1764567297498,0.4895,2825.1,2825.0,18.25959198]
[1764567297922,0.9694,2825.1,2825.0,10.40574416]
[1764567298127,0.9694,2825.1,2825.0,16.9953312]
[1764567298497,0.4895,2825.1,2825.0,16.9953312]
[1764567299628,0.002,2825.1,2825.0,16.9953312]
[1764567301801,0.4895,2825.1,2825.0,16.9953312]
[1764567302930,0.9694,2825.1,2825.0,8.11541711]
[1764567303226,0.9694,2825.1,2825.0,14.70500415]
[1764567303703,0.9694,2825.1,2825.0,7.389823]
[1764567304702,0.002,2825.1,2825.0,7.850823]
[1764567304914,0.002,2825.1,2825.0,9.67895882]
[1764567305529,0.002,2825.1,2825.0,10.15015882]
[1764567305698,0.002,2825.1,2825.0,9.67895882]
[1764567306133,0.002,2825.1,2825.0,19.99250672]
[1764567306335,0.002,2825.1,2825.0,18.43922688]
[1764567306534,0.002,2825.1,2825.0,25.35118688]
[1764567306735,0.002,2825.1,2825.0,11.62563984]
[1764567306942,0.002,2825.1,2825.0,18.43922688]
[1764567307152,0.002,2825.1,2825.0,11.62563984]
[1764567307308,0.002,2825.1,2825.0,11.50525693]
[1764567307707,0.002,2825.1,2825.0,11.28125693]
[1764567307909,0.002,2825.1,2825.0,11.50525693]
[1764567309550,0.002,2825.1,2825.0,13.40464357]
[1764567309915,0.002,2825.1,2825.0,12.70944357]
[1764567310246,0.002,2825.1,2825.0,12.93344357]
[1764567310815,0.002,2825.1,2825.0,13.40464357]
[1764567311049,0.002,2825.1,2825.0,12.93344357]
[1764567311252,0.002,2825.1,2825.0,19.99423061]
[1764567312117,0.002,2825.1,2825.0,13.40464357]
[1764567313015,0.002,2825.1,2825.0,12.93344357]
[1764567313243,0.002,2825.1,2825.0,12.70944357]
[1764567313452,0.4895,2825.1,2825.0,7.389823]
[1764567313659,0.9694,2825.1,2825.0,7.389823]
[1764567313813,0.002,2825.1,2825.0,16.04270815]
[1764567314006,0.002,2825.1,2825.0,9.45312111]
[1764567314413,0.002,2825.1,2825.0,8.98192111]
[1764567315040,0.002,2825.1,2825.0,11.11930235]
[1764567315641,0.002,2825.1,2825.0,10.65830235]
[1764567316115,0.4895,2825.1,2825.0,8.52092111]
[1764567316747,0.002,2825.1,2825.0,8.74492111]
[1764567317150,0.002,2825.1,2825.0,9.20592111]
[1764567317516,0.9694,2825.1,2825.0,8.11541711]
[1764567317716,0.9694,2825.1,2825.0,14.70500415]
[1764567318661,0.9694,2825.1,2825.0,0.72559411]
[1764567319218,0.9694,2825.1,2825.0,3.539823]
[1764567324033,0.9694,2825.1,2824.9,0.301]
[1764567324355,1.03584028,2825.0,2824.9,0.301]
[1764567324559,1.49378621,2825.0,2824.9,0.301]
[1764567324856,1.71778621,2825.0,2824.9,0.301]
[1764567325255,1.25984028,2825.0,2824.9,0.301]
[1764567325458,11.14945219,2825.0,2824.9,0.301]
[1764567325855,1.25984028,2825.0,2824.9,0.301]
[1764567327152,4.79966328,2825.0,2824.9,0.301]
[1764567327751,11.14945219,2825.0,2824.9,0.301]
[1764567327932,12.61876725,2825.0,2824.9,0.301]
[1764567328139,13.74986536,2825.0,2824.9,0.301]
[1764567328371,39.34570136,2825.0,2824.9,0.301]
[1764567328539,0.35364028,2824.7,2824.6,0.001]
[1764567328735,7.36082919,2824.7,2824.6,0.001]
[1764567329051,8.69351152,2824.7,2824.6,0.001]
[1764567329263,12.23371047,2824.7,2824.6,0.001]
[1764567330663,0.405504,2824.6,2824.5,0.001]
[1764567330838,29.83476639,2824.6,2824.5,0.001]
[1764567331043,18.86509739,2824.6,2824.5,0.001]
[1764567331261,0.72559411,2824.5,2824.3,0.001]
[1764567331463,8.1192233,2824.4,2824.3,0.001]
[1764567331674,8.5956233,2824.4,2824.3,0.001]
[1764567332984,22.4524373,2824.4,2824.3,0.001]
[1764567333298,12.48364639,2824.1,2823.8,0.001]
[1764567333468,12.94744639,2824.1,2823.8,0.001]
[1764567333674,14.0155563,2824.1,2823.8,0.001]
[1764567334267,8.7747273,2824.1,2823.8,0.001]
[1764567335490,16.74724939,2824.1,2823.8,0.001]
[1764567335795,19.00058193,2824.1,2823.8,0.001]
[1764567337193,44.56901093,2824.1,2823.8,0.001]
[1764567337425,41.78569393,2824.1,2823.8,0.001]
[1764567337593,41.14933993,2824.1,2823.8,0.001]
[1764567338090,40.62063993,2824.1,2823.8,0.001]
[1764567338299,38.46957193,2824.1,2823.8,0.001]
[1764567338471,33.52233793,2824.1,2823.8,0.001]
[1764567339188,14.56901093,2824.1,2823.8,0.001]
[1764567339396,33.52233793,2824.1,2823.8,0.001]
[1764567339775,23.55453293,2824.1,2823.8,0.001]
[1764567340190,14.56901093,2824.1,2823.8,0.001]
[1764567340488,14.38750693,2824.1,2823.8,0.001]
[1764567340676,21.08705993,2824.1,2823.8,0.001]
[1764567341914,34.91761393,2824.1,2823.8,0.001]
[1764567342122,28.01457793,2824.1,2823.8,0.001]
[1764567342300,24.45706693,2824.1,2823.8,0.001]
[1764567342704,19.35951793,2824.1,2823.8,0.001]
[1764567343080,23.91751793,2824.1,2823.8,0.001]
[1764567343482,4.49676693,2824.1,2823.8,0.001]
[1764567343781,5.78438548,2824.1,2823.8,0.001]
[1764567352815,0.35364028,2824.4,2824.0,0.4798]
[1764567353138,0.35364028,2824.4,2824.1,0.4788]
[1764567353139,0.224,2824.3,2824.1,0.4788]
[1764567353434,0.224,2824.3,2824.0,0.001]
[1764567353435,0.35364028,2824.1,2824.0,0.001]
[1764567354008,0.35364028,2824.1,2824.0,0.4798]
[1764567354942,4.86999137,2824.1,2824.0,0.001]
[1764567355235,5.73367326,2824.1,2824.0,0.001]
[1764567355622,6.13917726,2824.1,2824.0,0.001]
[1764567355823,5.73367326,2824.1,2824.0,0.001]
[1764567358761,1.69972217,2824.1,2824.0,0.001]
[1764567358923,0.35364028,2824.1,2824.0,0.4798]
[1764567359124,0.35564028,2824.2,2824.0,4.02087648]
[1764567359448,0.002,2824.2,2824.1,0.4788]
[1764567359737,0.002,2824.2,2824.1,2.90860158]
[1764567360844,0.002,2824.2,2824.1,6.44955267]
[1764567361453,0.002,2824.2,2824.1,7.17514678]
[1764567361816,0.002,2824.2,2824.1,8.84680687]
[1764567362248,0.002,2824.2,2824.1,7.58065078]
[1764567364311,0.002,2824.2,2824.1,7.17514678]
[1764567367252,0.002,2824.2,2824.1,11.02514678]
[1764567367476,0.002,2824.2,2824.1,7.17514678]
[1764567368449,0.002,2824.2,2824.1,7.58065078]
[1764567373054,0.002,2824.2,2824.1,11.43065078]
[1764567374880,0.002,2824.2,2824.1,11.65465078]
[1764567380573,0.002,2824.2,2824.1,19.72792755]
[1764567381778,0.002,2824.5,2824.2,1.13109811]
[1764567382079,0.002,2824.5,2824.4,8.55207677]
[1764567382481,0.002,2824.5,2824.4,22.22118187]
[1764567383274,0.002,2824.5,2824.4,14.87349921]
[1764567383449,0.002,2824.5,2824.4,18.81957819]
[1764567383647,0.002,2824.5,2824.4,22.66957819]
[1764567383970,0.002,2824.5,2824.4,11.82786788]
[1764567384365,0.002,2824.5,2824.4,18.41337043]
[1764567384679,0.002,2824.5,2824.4,11.82786788]
[1764567385977,0.475,2824.5,2824.4,10.85167164]
[1764567386155,0.9386,2824.5,2824.4,3.54057498]
[1764567387282,0.9386,2824.5,2824.2,6.58550255]
[1764567387468,0.473,2824.1,2824.0,3.54207648]
[1764567387647,0.9366,2824.1,2824.0,10.12757903]
[1764567388452,0.9366,2824.1,2824.0,3.54207648]
[1764567389482,0.9366,2824.1,2824.0,0.001]
[1764567391788,0.9366,2824.1,2824.0,3.54207648]
[1764567392884,1.29024028,2824.1,2824.0,0.001]
[1764567393954,0.9366,2824.1,2824.0,0.001]
[1764567394154,1.29024028,2824.1,2824.0,0.001]
[1764567394390,0.9366,2824.1,2824.0,0.001]
[1764567394589,1.29024028,2824.1,2824.0,0.001]
[1764567395691,0.9366,2824.1,2824.0,0.001]
[1764567395860,1.29024028,2824.1,2824.0,3.54207648]
[1764567396284,1.29024028,2824.1,2824.0,3.57748724]
[1764567396785,0.9366,2824.1,2824.0,3.57748724]
[1764567397286,0.9366,2824.1,2824.0,3.54207648]
[1764567397685,1.29024028,2824.1,2824.0,3.54207648]
[1764567397990,1.51424028,2824.1,2824.0,0.001]
[1764567399093,1.1606,2824.1,2824.0,0.001]
[1764567399273,1.51424028,2824.1,2824.0,0.001]
[1764567399469,1.1606,2824.1,2824.0,0.001]
[1764567399672,1.51424028,2824.1,2824.0,0.001]
[1764567400295,1.1606,2824.1,2824.0,0.001]
[1764567400487,1.51424028,2824.1,2824.0,0.001]
[1764567402301,1.1606,2824.1,2824.0,0.001]
[1764567402596,6.18628948,2824.1,2824.0,0.001]
[1764567402797,7.15900151,2824.1,2824.0,0.001]
[1764567403998,9.49152311,2824.0,2823.8,0.001]
[1764567404165,1.69324428,2823.9,2823.8,0.001]
[1764567404366,5.96004027,2823.9,2823.8,0.001]
[1764567404570,7.02982371,2823.9,2823.8,0.001]
[1764567407415,7.02937739,2823.9,2823.8,0.001]
[1764567410616,13.62569193,2823.9,2823.8,0.001]
[1764567411613,50.22200647,2823.9,2823.8,0.001]
[1764567411783,47.30721047,2823.9,2823.8,0.001]
[1764567411982,41.61397347,2823.9,2823.8,0.001]
[1764567412214,35.01765893,2823.9,2823.8,0.001]
[1764567412410,41.61397347,2823.9,2823.8,0.001]
[1764567412713,40.42915947,2823.9,2823.8,0.001]
[1764567413015,18.85328493,2823.9,2823.8,0.001]
[1764567413205,13.62569193,2823.9,2823.8,0.001]
[1764567414403,7.02937739,2823.9,2823.8,0.001]
[1764567415208,7.25337739,2823.9,2823.8,0.001]
[1764567416986,7.02937739,2823.9,2823.8,0.001]
[1764567417183,7.25337739,2823.9,2823.8,0.001]
[1764567419216,7.02937739,2823.9,2823.8,0.001]
[1764567419420,7.25337739,2823.9,2823.8,0.001]
[1764567419598,7.25537739,2823.9,2823.8,0.001]
[1764567420899,37.25537739,2823.9,2823.8,0.001]
[1764567421628,31.57416439,2823.9,2823.8,0.001]
[1764567421921,13.67434139,2823.9,2823.8,0.001]
[1764567422128,13.31963139,2823.9,2823.8,0.001]
[1764567422894,29.71377439,2823.9,2823.8,0.001]
[1764567423094,27.07777439,2823.9,2823.8,0.001]
[1764567423819,7.25537739,2823.9,2823.8,0.001]
[1764567424025,27.07677439,2823.9,2823.8,0.001]
[1764567424911,26.89741939,2823.9,2823.8,0.001]
[1764567425236,26.66541939,2823.9,2823.8,0.001]
[1764567425997,26.66441939,2823.9,2823.8,0.001]
[1764567426200,16.56204839,2823.9,2823.8,0.001]
[1764567426400,14.18873739,2823.9,2823.8,0.001]
[1764567426597,7.25537739,2823.9,2823.8,0.001]
[1764567427113,21.39810639,2823.9,2823.8,0.001]
[1764567427744,39.89625482,2823.9,2823.7,0.001]
[1764567428031,37.72860143,2823.8,2823.7,0.001]
[1764567428194,40.8399302,2823.8,2823.7,0.001]
[1764567428627,39.56834563,2823.7,2823.6,0.001]
[1764567428847,39.83747414,2823.7,2823.6,0.001]
[1764567429050,43.26189712,2823.7,2823.6,0.001]
[1764567429714,44.35456712,2823.7,2823.6,0.001]
[1764567430131,46.89317463,2823.4,2823.0,0.001]
[1764567430333,0.35319396,2821.6,2821.1,0.4919]
[1764567430537,0.35319396,2821.3,2821.2,0.1577]
[1764567430924,0.35319396,2821.3,2821.2,1.1154]
[1764567432423,0.35319396,2821.3,2821.2,4.65999095]
[1764567432946,0.35319396,2821.3,2821.2,1.1154]
[1764567433148,0.35319396,2821.3,2821.2,4.65999095]
[1764567433847,0.224,2821.3,2821.2,5.48046447]
[1764567434438,0.6576,2823.0,2821.2,12.56964637]
[1764567434637,0.6576,2823.0,2821.3,8.61139821]
[1764567434638,0.35319396,2822.1,2821.3,8.61139821]
[1764567434839,0.57719396,2822.0,2821.3,8.57595356]
[1764567435149,0.224,2822.0,2821.4,2.51068999]
[1764567435451,0.35319396,2821.9,2821.4,2.51068999]
[1764567435619,0.35319396,2821.6,2821.5,0.4919]
[1764567435826,0.224,2822.0,2821.9,0.4658]
[1764567436033,0.57719396,2822.0,2821.9,0.4658]
[1764567436649,0.35319396,2821.8,2821.6,0.4919]
[1764567436841,0.35319396,2821.7,2821.6,0.4919]
[1764567437239,0.224,2822.0,2821.6,4.50178846]
[1764567437454,0.224,2822.0,2821.6,8.38467674]
[1764567437643,0.35319396,2821.9,2821.7,0.4919]
[1764567437845,0.57719396,2822.0,2821.9,0.4658]
[1764567438938,0.57719396,2822.0,2821.2,4.52272349]
[1764567438939,1.05949396,2822.0,2821.3,0.4919]
[1764567439139,0.7063,2822.0,2821.3,4.07180996]
[1764567439440,0.35319396,2821.6,2821.3,8.12127362]
[1764567439646,0.224,2821.5,2821.4,0.4919]
[1764567440145,0.224,2821.5,2821.4,0.9577]
[1764567440846,0.224,2821.5,2821.4,0.99314339]
[1764567441167,0.224,2821.5,2821.4,4.53748307]
[1764567441343,0.224,2821.5,2821.4,5.4939951]
[1764567444339,0.224,2821.5,2821.4,11.8594869]
[1764567444538,0.224,2821.5,2821.4,11.82404351]
[1764567445160,0.224,2821.5,2821.4,5.45855171]
[1764567445458,0.224,2821.5,2821.4,9.30855171]
[1764567446758,0.57719396,2822.0,2821.4,16.39723107]
[1764567447053,0.57719396,2822.0,2821.6,6.3654918]
[1764567447054,0.224,2822.0,2821.6,6.3654918]
[1764567447258,0.57719396,2822.0,2821.9,0.4699]
[1764567447635,0.57719396,2822.0,2821.9,0.9468]
[1764567448832,0.224,2822.0,2821.9,0.9468]
[1764567449149,0.57719396,2822.0,2821.9,4.49051168]
[1764567449662,0.224,2822.0,2821.9,4.49051168]
[1764567449852,0.57719396,2822.0,2821.9,4.49051168]
[1764567450061,0.224,2822.0,2821.9,5.29394565]
[1764567450362,0.18856414,2822.0,2821.9,5.29394565]
[1764567450562,0.5417581,2822.0,2821.9,5.29394565]
[1764567451055,0.18856414,2822.0,2821.9,5.29394565]
[1764567451244,0.5417581,2822.0,2821.9,5.29394565]
[1764567451567,0.18856414,2822.0,2821.9,4.01361168]
[1764567453163,0.224,2822.0,2821.9,10.85600348]
[1764567454483,0.35319396,2822.8,2821.9,17.94342684]
[1764567454680,0.224,2822.4,2822.2,6.3654918]
[1764567455134,0.224,2822.4,2822.3,0.4699]
[1764567455332,0.57719396,2822.4,2822.3,4.01310943]
[1764567455562,0.224,2822.4,2822.3,4.01310943]
[1764567455866,0.57719396,2822.4,2822.3,0.4699]
[1764567456072,0.57719396,2822.4,2822.3,4.01310943]
[1764567456363,0.224,2822.4,2822.3,5.26366306]
[1764567456764,0.224,2822.4,2822.3,4.78676306]
[1764567456971,0.57719396,2822.4,2822.3,4.01310943]
[1764567457345,1.02779396,2822.4,2821.9,6.3654918]
[1764567457535,0.35319396,2822.3,2822.0,7.5640722]
[1764567458167,0.224,2822.4,2822.2,0.65]
[1764567458369,0.57719396,2822.4,2822.3,0.4699]
[1764567458569,0.224,2822.4,2822.3,0.4699]
[1764567459572,0.224,2822.4,2822.3,4.01310943]
[1764567460739,0.83669396,2822.8,2822.3,4.83445376]
[1764567460956,0.57719396,2822.5,2822.4,0.4699]
[1764567461156,0.57719396,2822.5,2822.3,3.54320943]
[1764567461378,0.35319396,2822.4,2822.3,3.54320943]
[1764567461867,0.224,2822.5,2822.3,4.01310943]
[1764567462171,0.57719396,2822.5,2822.4,0.4699]
[1764567462650,0.224,2822.5,2822.4,0.4699]
[1764567463451,0.57719396,2822.5,2822.4,0.4699]
[1764567464054,0.224,2822.5,2822.4,4.0129839]
[1764567464260,0.6746,2822.5,2822.2,10.08883799]
[1764567464459,0.35319396,2822.3,2822.2,3.54324619]
[1764567465068,0.35319396,2822.3,2822.2,4.01314619]
[1764567468874,0.224,2822.5,2822.2,4.01314619]
[1764567468875,0.224,2822.5,2822.2,15.17254263]
[1764567469080,0.224,2822.5,2822.4,0.4699]
[1764567469477,0.224,2822.5,2822.4,0.9468]
[1764567470476,0.002,2823.0,2822.4,8.0329678]
[1764567470676,0.224,2822.9,2822.7,6.3654918]
[1764567470880,0.4162,2822.9,2822.4,13.4516596]
[1764567471060,0.35319396,2822.7,2822.4,15.80169861]
[1764567471259,0.35519396,2823.0,2822.5,0.4769]
[1764567471459,0.224,2822.9,2822.6,0.4699]
[1764567472181,0.224,2822.9,2822.4,8.95930681]
[1764567472182,0.57719396,2822.9,2822.4,8.95930681]
[1764567472487,0.3116,2822.6,2822.4,7.0861678]
[1764567472784,0.35319396,2822.6,2822.4,7.0861678]
[1764567474581,0.4879,2822.5,2822.3,7.08641886]
[1764567474887,0.4879,2822.5,2822.3,3.54320943]
[1764567474888,0.57719396,2822.4,2822.3,3.54320943]
[1764567475093,1.52679396,2822.4,2822.3,3.54320943]
[1764567475586,1.52679396,2822.4,2822.2,3.54328076]
[1764567476075,0.64949396,2822.3,2822.2,3.54328076]
[1764567476278,0.2963,2822.3,2822.2,3.54328076]
[1764567476652,0.64949396,2822.3,2822.0,7.0881722]
[1764567476853,0.2963,2822.3,2822.0,7.0881722]
[1764567477620,0.758,2822.3,2822.0,7.0881722]
[1764567477785,0.35319396,2822.2,2822.0,3.5445861]
[1764567477958,0.35319396,2822.1,2822.0,3.5445861]
[1764567478156,0.4879,2822.1,2822.0,0.001]
[1764567478355,1.30279396,2822.1,2822.0,0.001]
[1764567478659,4.8462545,2822.1,2822.0,0.001]
[1764567478875,5.75777343,2822.1,2822.0,0.001]
[1764567479388,13.25436334,2822.1,2822.0,0.001]
[1764567480468,39.83990853,2822.1,2822.0,0.001]
[1764567480678,30.35670953,2822.1,2822.0,0.001]
[1764567480991,18.01522296,2821.8,2821.7,0.001]
[1764567481154,20.40960467,2821.8,2821.7,0.001]
[1764567481362,12.87437367,2821.8,2821.7,0.001]
[1764567481567,3.61477967,2821.8,2821.7,0.001]
[1764567481795,1.74069796,2821.8,2821.7,0.001]
[1764567483068,6.01012933,2821.8,2821.7,0.001]
[1764567484866,1.83678807,2821.8,2821.7,0.001]
[1764567485070,2.06078807,2821.8,2821.7,0.001]
[1764567485494,1.59908807,2821.8,2821.7,0.001]
[1764567485799,2.06078807,2821.8,2821.7,0.001]
[1764567486001,2.39722721,2821.8,2821.7,0.001]
[1764567486170,0.57719396,2821.8,2821.7,0.4977]
[1764567487603,1.06509396,2821.8,2821.7,0.001]
[1764567487786,0.57719396,2821.8,2821.7,4.04166285]
[1764567488802,0.224,2821.8,2821.7,4.04166285]
[1764567488976,0.35319396,2822.2,2821.7,12.3729633]
[1764567489293,0.57719396,2822.1,2821.9,3.54371168]
[1764567489472,0.57719396,2822.0,2821.9,3.54371168]
[1764567489674,0.224,2822.0,2821.9,3.54371168]
[1764567489874,0.224,2822.0,2821.9,4.04041168]
[1764567490076,0.226,2822.0,2821.9,4.04041168]
[1764567491789,0.57919396,2822.0,2821.9,4.04041168]
[1764567492614,0.226,2822.0,2821.9,4.04041168]
[1764567493204,0.57919396,2822.0,2821.9,4.04041168]
[1764567494700,1.06709396,2822.0,2821.9,3.54371168]
[1764567495511,0.57919396,2822.0,2821.9,3.54371168]
[1764567495826,0.57919396,2822.0,2821.9,4.04041168]
[1764567495827,0.226,2822.0,2821.9,4.04041168]
[1764567495985,0.226,2822.0,2821.9,5.23407541]
[1764567499919,0.7139,2822.0,2821.8,3.54383673]
[1764567500082,0.7139,2822.0,2821.7,7.08881783]
[1764567500287,0.35319396,2821.9,2821.7,0.001]
[1764567500799,0.57919396,2822.0,2821.8,0.4967]
[1764567501004,0.226,2822.0,2821.8,0.4967]
[1764567501177,0.57919396,2822.0,2821.8,0.4967]
[1764567501381,0.35319396,2821.8,2821.7,0.001]
[1764567501609,0.64949396,2821.8,2821.7,0.001]
[1764567501907,1.59927535,2821.8,2821.7,0.001]
[1764567502396,6.27421072,2821.8,2821.7,0.001]
[1764567502808,2.73037346,2821.8,2821.7,0.001]
[1764567503007,6.27421072,2821.8,2821.7,0.001]
[1764567503192,1.59927535,2821.8,2821.7,0.001]
[1764567503777,5.86870672,2821.8,2821.7,0.001]
[1764567504018,6.27421072,2821.8,2821.7,0.001]
[1764567504393,6.27421072,2821.8,2821.6,0.001]
[1764567504394,0.405504,2821.7,2821.6,0.001]
[1764567504596,26.68386487,2821.7,2821.6,0.001]
[1764567505804,32.73887087,2821.7,2821.6,0.001]
[1764567506006,31.14287087,2821.7,2821.6,0.001]
[1764567506205,30.49087087,2821.7,2821.6,0.001]
[1764567506611,37.03459072,2821.7,2821.6,0.001]
[1764567508428,32.96223572,2821.7,2821.6,0.001]
[1764567508623,30.46050372,2821.7,2821.6,0.001]
[1764567508797,29.62450472,2821.7,2821.6,0.001]
[1764567509197,7.03459072,2821.7,2821.6,0.001]
[1764567509411,29.62228172,2821.7,2821.6,0.001]
[1764567509604,29.61604972,2821.7,2821.6,0.001]
[1764567509917,30.04604823,2821.7,2821.6,0.001]
[1764567510301,30.04604823,2821.7,2821.4,0.001]
[1764567510302,39.57990345,2821.5,2821.4,0.001]
[1764567510504,47.0493405,2821.5,2821.4,0.001]
[1764567510720,47.5335405,2821.5,2821.4,0.001]
[1764567511010,44.3826325,2821.5,2821.4,0.001]
[1764567511206,42.7298875,2821.5,2821.4,0.001]
[1764567511510,36.5626395,2821.5,2821.4,0.001]
[1764567511707,37.2009195,2821.5,2821.4,0.001]
[1764567512320,0.05,2821.3,2821.1,0.001]
[1764567512524,0.05,2821.3,2820.9,0.001]
[1764567512525,0.455504,2821.0,2820.9,0.001]
[1764567512694,32.06539207,2821.0,2820.9,0.001]
[1764567513020,32.06539207,2821.0,2820.4,0.001]
[1764567513021,31.48429207,2820.9,2820.4,0.001]
[1764567513222,25.56067407,2820.5,2820.4,0.001]
[1764567513532,26.25227407,2820.5,2820.4,0.001]
[1764567513829,22.17749007,2820.5,2820.4,0.001]
[1764567514335,21.80619607,2820.5,2820.4,0.001]
[1764567514538,25.35166673,2820.5,2820.4,0.001]
[1764567514688,27.48214353,2820.5,2820.4,0.001]
[1764567514894,17.18956353,2820.5,2820.4,0.001]
[1764567515831,32.66073553,2820.5,2820.4,0.001]
[1764567516134,27.04361453,2820.5,2820.4,0.001]
[1764567517126,37.17519853,2820.5,2820.4,0.001]
[1764567517286,33.16084153,2820.5,2820.4,0.001]
[1764567517490,25.79268553,2820.5,2820.4,0.001]
[1764567517720,7.17519853,2820.5,2820.4,0.001]
[1764567517925,29.88146853,2820.5,2820.4,0.001]
[1764567518128,29.50063453,2820.5,2820.4,0.001]
[1764567518304,28.51863453,2820.5,2820.4,0.001]
[1764567519704,7.17519853,2820.5,2820.4,0.001]
[1764567519899,27.44379057,2820.5,2820.1,0.001]
[1764567520125,27.44379057,2820.5,2818.3,0.01280083]
[1764567520126,1.13109811,2820.1,2818.8,0.4801]
[1764567520332,0.35319396,2819.2,2818.8,0.4801]
[1764567520535,0.57719396,2819.1,2818.6,3.5478388]
[1764567520809,0.75869796,2819.2,2819.1,0.4538]
[1764567521026,0.35319396,2818.4,2818.2,0.4801]
[1764567521228,0.57719396,2818.3,2818.2,0.4801]
[1764567521628,0.57719396,2818.3,2818.2,0.9339]
[1764567522128,0.57719396,2818.3,2818.2,4.4822642]
[1764567525207,0.6959,2818.3,2818.1,0.001]
[1764567525431,0.35319396,2818.2,2818.1,0.6388]
[1764567525934,0.35319396,2818.2,2818.1,0.6125]
[1764567526315,0.35319396,2818.2,2818.1,1.0926]
[1764567526715,0.35319396,2818.2,2818.1,4.64109011]
[1764567527439,0.35319396,2818.2,2818.1,1.0926]
[1764567527632,0.35319396,2818.2,2818.1,4.64109011]
[1764567527834,0.225,2818.2,2818.1,0.6125]
[1764567528036,0.57819396,2818.2,2818.1,1.0926]
[1764567528942,0.57819396,2818.2,2818.1,4.64109011]
[1764567529809,0.35319396,2819.0,2818.1,12.59262534]
[1764567530015,0.225,2818.9,2818.7,0.4538]
[1764567530225,0.225,2818.9,2818.3,10.68019725]
[1764567530430,0.225,2818.9,2818.8,0.4538]
[1764567530853,0.225,2818.9,2818.8,0.9339]
[1764567531550,0.12878732,2818.9,2818.8,0.9339]
[1764567531949,0.48198128,2818.9,2818.8,0.4538]
[1764567532147,0.48198128,2818.9,2818.5,0.4801]
[1764567532148,1.25498732,2818.9,2818.2,3.5483642]
[1764567532347,0.35319396,2818.3,2818.2,4.80202603]
[1764567532549,0.225,2818.4,2818.3,0.4801]
[1764567532930,0.225,2818.4,2818.3,0.9339]
[1764567534129,0.57819396,2818.4,2818.3,4.48213829]
[1764567534654,0.57819396,2818.4,2818.3,4.00203829]
[1764567535053,0.57819396,2818.4,2818.3,4.47363829]
[1764567536960,0.57819396,2818.4,2818.3,0.4538]
[1764567537132,0.35319396,2818.2,2818.1,0.1587]
[1764567537541,0.225,2818.2,2818.1,4.18899011]
[1764567537779,0.57819396,2818.2,2818.1,4.18899011]
[1764567537987,0.57819396,2818.2,2818.1,0.6405]
[1764567538684,0.57819396,2818.2,2818.1,4.18899011]
[1764567538889,0.225,2818.2,2818.1,4.66059011]
[1764567539067,0.35319396,2818.6,2818.1,12.61407129]
[1764567539269,0.225,2818.5,2818.2,0.4716]
[1764567539468,0.225,2818.5,2818.3,1.25785864]
[1764567539680,0.225,2818.5,2818.4,0.4818]
[1764567539681,0.57819396,2818.5,2818.4,0.4818]
[1764567540288,0.57819396,2818.5,2818.4,4.0299124]
[1764567540893,0.57819396,2818.5,2818.4,4.5015124]
[1764567541294,0.57819396,2818.5,2818.4,0.4818]
[1764567541512,0.57819396,2818.5,2818.4,4.0299124]
[1764567542368,0.225,2818.5,2818.4,0.4818]
[1764567542578,0.54272039,2818.5,2818.4,4.5015124]
[1764567542760,0.18952643,2818.5,2818.4,4.5015124]
[1764567542966,0.18952643,2818.5,2818.4,5.30658665]
[1764567543392,0.35319396,2818.6,2818.4,5.30658665]
[1764567543593,0.35519396,2818.9,2818.5,4.01958651]
[1764567543793,0.225,2818.8,2818.5,8.04937302]
[1764567544002,0.225,2818.8,2818.6,0.4716]
[1764567544186,0.35319396,2818.7,2818.6,0.4716]
[1764567544697,0.35319396,2818.7,2818.6,4.50126064]
[1764567544895,0.35319396,2818.4,2818.3,3.54915868]
[1764567545299,0.35319396,2818.7,2818.3,8.82357849]
[1764567545504,0.35319396,2818.7,2818.6,0.4818]
[1764567546198,0.35319396,2818.4,2818.3,4.3219402]
[1764567546503,0.35319396,2818.4,2818.3,4.7935402]
[1764567546677,0.35319396,2818.4,2818.3,5.2753402]
[1764567548207,0.35319396,2818.7,2818.3,8.82357849]
[1764567548710,0.35319396,2818.7,2818.6,0.4818]
[1764567549715,0.002,2818.9,2818.6,0.9534]
[1764567550013,0.227,2818.9,2818.8,0.4818]
[1764567550686,0.58019396,2818.9,2818.8,4.02940891]
[1764567551991,0.58019396,2818.9,2818.8,0.4818]
[1764567552310,0.58019396,2818.9,2818.8,4.02940891]
[1764567552614,1.03249396,2818.9,2818.5,0.4716]